bitfinex-derivatives/quotes_ETHF0:USTF0_20250503
["timestamp","ask_amount","ask_price","bid_price","bid_amount"]
[1746280024091,3.51907,1836.8,1836.7,4.80663]
[1746280024302,2.4305,1836.8,1836.7,4.80663]
[1746280024492,1.6367,1836.8,1836.7,4.80663]
[1746280024996,1.6367,1836.8,1836.7,6.52983]
[1746280027589,2.72527,1836.8,1836.7,6.52983]
[1746280027790,1.6367,1836.8,1836.7,6.52983]
[1746280039004,2.72527,1836.8,1836.7,6.52983]
[1746280039302,1.6367,1836.8,1836.7,6.52983]
[1746280042413,2.72527,1836.8,1836.7,3.718]
[1746280042609,2.72527,1836.8,1836.7,4.80663]
[1746280052115,2.72527,1836.8,1836.7,1.08863]
[1746280053127,2.72527,1836.8,1836.7,4.80663]
[1746280053828,5.93307,1836.8,1836.7,3.718]
[1746280054227,1.08863,1836.7,1836.6,1.08865]
[1746280054431,3.64463,1836.7,1836.6,1.08865]
[1746280055425,1.08869,1836.6,1836.5,12.02980233]
[1746280055731,3.61989,1836.6,1836.5,12.02982233]
[1746280057627,3.61989,1836.6,1836.5,4.80675]
[1746280058020,3.61989,1836.6,1836.5,3.718]
[1746280058229,6.82769,1836.6,1836.5,3.718]
[1746280065235,1.08887,1836.3,1836.2,1.0889]
[1746280065436,1.08893,1836.2,1836.1,9.99511233]
[1746280065736,1.6787,1836.2,1836.1,9.99511233]
[1746280066434,2.76763,1836.2,1836.1,9.99511233]
[1746280067636,2.76763,1836.2,1836.1,2.77204]
[1746280068435,1.6787,1836.2,1836.1,2.77204]
[1746280068629,2.76763,1836.2,1836.1,2.77204]
[1746280070136,2.76763,1836.2,1836.1,1.6831]
[1746280070439,1.08899,1836.1,1836.0,3.718]
[1746280070637,3.60569,1836.1,1836.0,3.718]
[1746280073342,3.60569,1836.1,1836.0,4.80705]
[1746280078945,4.29678,1836.2,1836.1,1.08899]
[1746280079148,4.29678,1836.2,1836.1,2.83149]
[1746280079647,5.89418,1836.2,1836.1,2.83149]
[1746280084446,2.68638,1836.2,1836.1,2.83149]
[1746280085548,3.54668,1836.2,1836.1,2.83149]
[1746280085744,3.54668,1836.2,1836.0,4.80702]
[1746280085950,2.74529,1836.1,1836.0,6.53012]
[1746280089849,1.6563,1836.1,1836.0,6.53012]
[1746280090048,2.74529,1836.1,1836.0,6.53012]
[1746280090463,1.6563,1836.1,1836.0,6.53012]
[1746280090751,2.74529,1836.1,1836.0,6.53012]
[1746280091055,2.74529,1836.1,1836.0,4.80705]
[1746280091355,2.74529,1836.1,1836.0,6.38215]
[1746280093052,1.08896,1836.2,1836.1,1.08896]
[1746280093256,1.08896,1836.2,1836.1,2.75496]
[1746280093448,2.71896,1836.2,1836.1,2.75496]
[1746280093643,2.71896,1836.2,1836.1,1.666]
[1746280093954,2.71896,1836.2,1836.1,2.75499]
[1746280094760,2.71896,1836.2,1836.1,1.666]
[1746280094962,1.08899,1836.1,1836.0,4.80699]
[1746280095158,3.53079,1836.1,1836.0,4.80699]
[1746280097060,2.4418,1836.1,1836.0,4.80699]
[1746280097669,3.53079,1836.1,1836.0,4.80699]
[1746280101469,2.4418,1836.1,1836.0,4.80699]
[1746280101661,2.4418,1836.1,1836.0,6.43599]
[1746280102570,3.53079,1836.1,1836.0,6.43599]
[1746280106669,3.53079,1836.1,1836.0,4.80699]
[1746280108774,3.53079,1836.1,1836.0,3.718]
[1746280109875,3.53079,1836.1,1836.0,4.80705]
[1746280110577,3.53079,1836.1,1836.0,3.718]
[1746280111077,3.53079,1836.1,1836.0,4.80705]
[1746280111679,3.53079,1836.1,1836.0,3.718]
[1746280114877,6.73859,1836.1,1836.0,3.718]
[1746280119083,1.08905,1836.0,1835.9,7.22307233]
[1746280119276,3.61385,1836.0,1835.9,7.22307233]
[1746280119476,1.08911,1835.9,1835.8,8.31220233]
[1746280119676,3.64911,1835.9,1835.8,8.31220233]
[1746280120176,3.64911,1835.9,1835.8,12.03020233]
[1746280126181,3.64911,1835.9,1835.8,4.80713]
[1746280126387,3.64911,1835.9,1835.8,3.718]
[1746280127881,3.64911,1835.9,1835.8,4.80717]
[1746280139194,3.64911,1835.9,1835.8,3.718]
[1746280141295,3.64911,1835.9,1835.8,4.80717]
[1746280142397,3.64911,1835.9,1835.8,3.718]
[1746280144996,3.64911,1835.9,1835.8,4.80717]
[1746280145195,3.64911,1835.9,1835.8,3.718]
[1746280152206,2.80891,1835.9,1835.8,4.80717]
[1746280152602,2.80891,1835.9,1835.8,6.39107]
[1746280165910,5.10187,1836.0,1835.9,1.08911]
[1746280166105,5.10187,1836.0,1835.9,6.51161]
[1746280167114,3.2078,1836.0,1835.9,6.51161]
[1746280167514,4.29685,1836.0,1835.9,6.51161]
[1746280168723,1.6705,1836.1,1836.0,1.08905]
[1746280168912,1.6705,1836.1,1836.0,2.72605]
[1746280169114,2.80787,1836.2,1836.1,1.08899]
[1746280169314,4.48297,1836.2,1836.1,2.83309]
[1746280171522,2.5247,1836.2,1836.1,2.83309]
[1746280174722,3.2078,1836.3,1836.2,1.08893]
[1746280175022,3.56964,1836.4,1836.3,1.08887]
[1746280175523,3.3315,1836.4,1836.3,1.08887]
[1746280176125,3.3315,1836.4,1836.3,4.80687]
[1746280176828,4.42031,1836.4,1836.3,4.80687]
[1746280177928,3.3315,1836.4,1836.3,4.80687]
[1746280178629,2.4808,1836.4,1836.3,4.80687]
[1746280182629,3.3349,1836.4,1836.3,4.80687]
[1746280184533,4.42371,1836.4,1836.3,4.80687]
[1746280184735,3.3349,1836.4,1836.3,4.80687]
[1746280197043,4.42371,1836.4,1836.3,4.80687]
[1746280201847,4.42371,1836.4,1836.3,3.718]
[1746280203848,4.42371,1836.4,1836.3,4.80687]
[1746280204647,4.42371,1836.4,1836.3,3.718]
[1746280205449,4.42371,1836.4,1836.3,4.80687]
[1746280205649,3.3349,1836.4,1836.3,4.80687]
[1746280206544,3.3349,1836.4,1836.3,6.39137]
[1746280206746,2.4808,1836.4,1836.3,6.39137]
[1746280207751,3.2836,1836.4,1836.3,6.39137]
[1746280209245,4.37241,1836.4,1836.3,4.80687]
[1746280210055,4.37241,1836.4,1836.3,3.718]
[1746280211255,4.37241,1836.4,1836.3,4.80687]
[1746280211555,4.37241,1836.4,1836.3,3.718]
[1746280221064,1.08887,1836.3,1836.2,7.22307233]
[1746280221255,2.77387,1836.3,1836.2,7.22307233]
[1746280222059,2.77387,1836.3,1836.2,10.94107233]
[1746280222564,5.98167,1836.3,1836.2,10.94107233]
[1746280225163,5.98167,1836.3,1836.2,7.22307233]
[1746280226465,1.08905,1836.0,1835.9,7.22307233]
[1746280227168,1.08905,1836.0,1835.9,10.94107233]
[1746280227368,3.54475,1836.0,1835.9,10.94107233]
[1746280230467,3.54475,1836.0,1835.9,3.718]
[1746280232576,3.54475,1836.0,1835.9,4.80711]
[1746280232776,3.54475,1836.0,1835.9,6.45221]
[1746280239085,3.54475,1836.0,1835.9,5.3631]
[1746280239284,3.54475,1836.0,1835.9,3.718]
[1746280252283,6.75255,1836.0,1835.9,3.718]
[1746280253196,1.08917,1835.8,1835.7,3.43]
[1746280253492,1.08923,1835.7,1835.6,9.99651233]
[1746280254994,2.81743,1835.7,1835.6,9.99651233]
[1746280255994,2.81743,1835.7,1835.6,2.77344]
[1746280261295,2.81743,1835.7,1835.6,9.99651233]
[1746280261502,1.7282,1835.7,1835.6,9.99651233]
[1746280261704,1.6065,1835.8,1835.7,1.08923]
[1746280261895,2.69567,1835.8,1835.7,2.82113]
[1746280262094,2.69567,1835.8,1835.7,6.53913]
[1746280264503,1.89007,1835.8,1835.7,6.53913]
[1746280269497,1.89007,1835.8,1835.7,5.4499]
[1746280269803,2.69257,1835.8,1835.7,5.4499]
[1746280270906,2.69257,1835.8,1835.7,3.718]
[1746280275810,3.12827451,1835.8,1835.7,3.718]
[1746280277113,6.33605538,1835.8,1835.7,3.718]
[1746280278705,3.12825538,1835.8,1835.7,3.718]
[1746280279012,6.33594789,1835.8,1835.7,3.718]
[1746280280913,6.33586012,1835.8,1835.7,3.718]
[1746280284316,6.33576266,1835.8,1835.7,3.718]
[1746280287920,6.33568552,1835.8,1835.7,3.718]
[1746280289921,6.33565609,1835.8,1835.7,3.718]
[1746280290118,1.08928,1835.6,1835.5,40.8]
[1746280290417,1.52456609,1835.6,1835.5,40.8]
[1746280290817,2.33206609,1835.6,1835.5,40.8]
[1746280291218,2.33206609,1835.6,1835.5,44.518]
[1746280291621,2.33201924,1835.6,1835.5,44.518]
[1746280292817,2.33201924,1835.6,1835.5,3.718]
[1746280294419,5.53981924,1835.6,1835.5,3.718]
[1746280296915,5.10458,1835.6,1835.5,3.718]
[1746280297123,5.53980521,1835.6,1835.5,3.718]
[1746280297823,6.39890521,1835.6,1835.5,3.718]
[1746280298727,6.39892412,1835.6,1835.5,3.718]
[1746280301228,8.14572412,1835.6,1835.5,3.718]
[1746280304126,8.14587084,1835.6,1835.5,3.718]
[1746280306136,8.14594433,1835.6,1835.5,3.718]
[1746280307835,8.14593154,1835.6,1835.5,3.718]
[1746280310038,12.54496727,1835.6,1835.5,3.718]
[1746280311944,12.54494061,1835.6,1835.5,3.718]
[1746280313343,12.54493928,1835.6,1835.5,3.718]
[1746280316840,12.10951573,1835.6,1835.5,3.718]
[1746280317049,12.54500288,1835.6,1835.5,3.718]
[1746280318047,2.72337,1835.5,1835.0,7.22307233]
[1746280318248,1.08952,1835.2,1835.1,1.5818]
[1746280318451,1.52500715,1835.2,1835.1,1.5818]
[1746280318653,1.52503751,1835.2,1835.1,1.5818]
[1746280319144,1.08958,1835.1,1835.0,10.94107233]
[1746280319347,3.90469422,1835.1,1835.0,10.94107233]
[1746280319549,2.32409422,1835.1,1835.0,13.05587233]
[1746280319753,1.52509422,1835.1,1835.0,13.05587233]
[1746280320459,1.52501835,1835.1,1835.0,13.05587233]
[1746280320653,1.52501835,1835.1,1835.0,19.14551233]
[1746280320654,0.43543835,1835.1,1835.0,19.14551233]
[1746280320858,1.08956,1835.2,1835.1,1.08958]
[1746280321057,1.08956,1835.2,1835.1,1.7087]
[1746280321957,1.08956,1835.2,1835.1,2.79828]
[1746280322360,1.08956,1835.2,1835.1,1.7087]
[1746280324863,1.08956,1835.2,1835.1,2.79828]
[1746280325559,1.08958,1835.1,1835.0,10.94107233]
[1746280325760,1.52507438,1835.1,1835.0,10.94107233]
[1746280326061,1.52507438,1835.1,1835.0,12.94577233]
[1746280326462,1.52507438,1835.1,1835.0,12.53907233]
[1746280326662,3.25387438,1835.1,1835.0,12.53907233]
[1746280327157,6.46165795,1835.1,1835.0,5.316]
[1746280328767,6.46165795,1835.1,1835.0,3.718]
[1746280328966,6.46155285,1835.1,1835.0,3.718]
[1746280330761,6.46147803,1835.1,1835.0,3.718]
[1746280330961,7.31027803,1835.1,1835.0,3.718]
[1746280332572,7.31027803,1835.1,1835.0,5.3264]
[1746280334269,6.87498,1835.1,1835.0,5.3264]
[1746280334475,7.31018015,1835.1,1835.0,5.3264]
[1746280334773,7.31018015,1835.1,1835.0,3.718]
[1746280341465,6.87498,1835.1,1835.0,3.718]
[1746280341672,7.31014028,1835.1,1835.0,3.718]
[1746280343272,6.87498,1835.1,1835.0,3.718]
[1746280343479,7.31014624,1835.1,1835.0,3.718]
[1746280345278,7.31020527,1835.1,1835.0,3.718]
[1746280346978,7.31027353,1835.1,1835.0,3.718]
[1746280348781,7.31036014,1835.1,1835.0,3.718]
[1746280349576,11.70939587,1835.1,1835.0,3.718]
[1746280352387,11.70950454,1835.1,1835.0,3.718]
[1746280356087,11.70984791,1835.1,1835.0,3.718]
[1746280357892,11.70986076,1835.1,1835.0,3.718]
[1746280359489,11.27401573,1835.1,1835.0,3.718]
[1746280359690,11.70986738,1835.1,1835.0,3.718]
[1746280361291,11.27401573,1835.1,1835.0,3.718]
[1746280361494,11.70987882,1835.1,1835.0,3.718]
[1746280365806,7.31084309,1835.1,1835.0,3.718]
[1746280366406,7.31091498,1835.1,1835.0,3.718]
[1746280366805,7.310932,1835.1,1835.0,3.718]
[1746280367000,0.435952,1835.1,1835.0,9.80764]
[1746280367404,1.08953,1835.2,1835.1,1.08956]
[1746280367706,1.52514974,1835.2,1835.1,43.97726]
[1746280368005,1.08953,1835.2,1835.1,48.97726]
[1746280368199,1.50680707,1835.2,1835.1,48.97726]
[1746280368403,5.91891,1835.3,1835.1,48.97726]
[1746280368595,5.91891,1835.3,1835.2,1.584]
[1746280368802,6.33606429,1835.3,1835.2,1.584]
[1746280369103,6.33606429,1835.3,1835.2,5.302]
[1746280369911,6.33606429,1835.3,1835.2,3.718]
[1746280370110,3.92456429,1835.3,1835.2,3.718]
[1746280370309,3.92443724,1835.3,1835.2,3.718]
[1746280372209,3.92425165,1835.3,1835.2,3.718]
[1746280372404,3.92422809,1835.3,1835.2,3.718]
[1746280372707,3.50741,1835.3,1835.2,3.718]
[1746280379916,1.6216,1835.3,1835.2,4.80752]
[1746280380117,1.93245,1835.4,1835.3,1.08946]
[1746280380321,1.93245,1835.4,1835.3,2.77636]
[1746280380617,1.08927,1835.7,1835.6,1.08928]
[1746280380812,10.49667745,1835.9,1835.8,1.08917]
[1746280381213,3.2078,1835.9,1835.8,4.80717]
[1746280381413,3.2078,1835.9,1835.8,6.49407]
[1746280381817,8.37793745,1836.0,1835.9,1.08911]
[1746280382016,7.28887745,1836.0,1835.9,2.77601]
[1746280382217,7.28887745,1836.0,1835.9,18.13081]
[1746280382818,7.28887745,1836.0,1835.9,58.93081]
[1746280383116,7.28887745,1836.0,1835.9,55.50181]
[1746280383316,7.28887745,1836.0,1835.9,50.72301]
[1746280383515,7.28887745,1836.0,1835.9,53.93081]
[1746280385722,2.4401,1836.3,1836.2,1.08893]
[1746280386218,2.4401,1836.3,1836.2,4.80693]
[1746280387121,3.52897,1836.3,1836.2,4.80693]
[1746280387819,2.4401,1836.3,1836.2,4.80693]
[1746280388323,3.52897,1836.3,1836.2,4.80693]
[1746280392122,3.52897,1836.3,1836.2,3.718]
[1746280392526,3.52897,1836.3,1836.2,4.80693]
[1746280394425,2.4401,1836.3,1836.2,4.80693]
[1746280395226,3.52897,1836.3,1836.2,4.80693]
[1746280395727,3.52897,1836.3,1836.2,3.718]
[1746280399130,1.08905,1836.0,1835.9,3.2078]
[1746280399725,1.08911,1835.9,1835.8,40.8]
[1746280399922,2.71111,1835.9,1835.8,40.8]
[1746280400127,2.71111,1835.9,1835.8,44.518]
[1746280401229,2.71111,1835.9,1835.8,3.718]
[1746280411139,2.71111,1835.9,1835.8,4.80717]
[1746280412329,2.71111,1835.9,1835.8,3.718]
[1746280417233,2.71111,1835.9,1835.8,44.518]
[1746280419240,2.71111,1835.9,1835.8,3.718]
[1746280420439,2.71111,1835.9,1835.8,5.4277]
[1746280422045,5.91891,1835.9,1835.8,5.4277]
[1746280422548,5.91891,1835.9,1835.8,6.51687]
[1746280423045,2.71111,1835.9,1835.8,6.51687]
[1746280423247,3.51311,1835.9,1835.8,6.51687]
[1746280424754,3.51311,1835.9,1835.8,5.4277]
[1746280425151,3.51311,1835.9,1835.8,6.51687]
[1746280425353,3.51311,1835.9,1835.8,5.4277]
[1746280426754,3.51311,1835.9,1835.8,6.51687]
[1746280427154,3.51311,1835.9,1835.8,5.4277]
[1746280429559,3.51311,1835.9,1835.8,3.718]
[1746280429859,3.51311,1835.9,1835.8,4.80717]
[1746280430059,3.51311,1835.9,1835.8,6.45487]
[1746280430459,1.08911,1835.9,1835.8,6.45487]
[1746280430656,1.08911,1835.9,1835.8,6.86117]
[1746280435663,1.08911,1835.9,1835.8,6.45487]
[1746280436164,1.90311,1835.9,1835.8,5.3657]
[1746280436865,1.90311,1835.9,1835.8,3.718]
[1746280439566,3.59521,1835.9,1835.8,3.718]
[1746280441669,4.01259545,1835.9,1835.8,3.718]
[1746280441868,3.59521,1835.9,1835.8,3.718]
[1746280447268,4.01261582,1835.9,1835.8,3.718]
[1746280448173,1.08917,1835.8,1835.7,7.22307233]
[1746280448377,4.05887582,1835.8,1835.7,7.22307233]
[1746280448975,4.05880234,1835.8,1835.7,7.22307233]
[1746280449177,4.05880234,1835.8,1835.7,10.94107233]
[1746280451976,4.05880234,1835.8,1835.7,3.718]
[1746280452575,4.0586877,1835.8,1835.7,3.718]
[1746280454076,7.2664877,1835.8,1835.7,3.718]
[1746280457076,6.84927,1835.8,1835.7,3.718]
[1746280457273,7.26629616,1835.8,1835.7,3.718]
[1746280458675,1.08934,1835.5,1835.4,7.22307233]
[1746280458874,1.50636616,1835.5,1835.4,7.22307233]
[1746280459278,1.50636616,1835.5,1835.4,10.94107233]
[1746280459477,3.20546616,1835.5,1835.4,10.94107233]
[1746280459681,2.78844,1835.5,1835.4,10.94107233]
[1746280459874,3.20527273,1835.5,1835.4,10.94107233]
[1746280460880,3.20527273,1835.5,1835.4,3.718]
[1746280463280,1.08926,1835.7,1835.6,1.08926]
[1746280463781,1.08928,1835.6,1835.5,3.2224]
[1746280463978,1.08928,1835.6,1835.5,1.4961]
[1746280464283,1.08928,1835.6,1835.5,5.2141]
[1746280464685,1.08926,1835.7,1835.6,1.08927]
[1746280464884,1.08914,1835.9,1835.5,6.84816]
[1746280465181,3.2078,1836.0,1835.7,1.0892]
[1746280465182,1.08918,1835.8,1835.7,1.0892]
[1746280466181,1.08918,1835.8,1835.7,4.8072]
[1746280466679,1.08918,1835.8,1835.7,3.718]
[1746280466877,1.08918,1835.8,1835.7,4.80723]
[1746280471988,2.75005,1835.9,1835.8,1.08917]
[1746280473189,2.75005,1835.9,1835.8,4.80717]
[1746280474292,2.75005,1835.9,1835.8,3.718]
[1746280474885,3.16667778,1835.9,1835.8,3.718]
[1746280475087,2.75005,1835.9,1835.8,3.718]
[1746280475290,3.16668991,1835.9,1835.8,3.718]
[1746280475586,2.75005,1835.9,1835.8,3.718]
[1746280478591,2.75005,1835.9,1835.8,4.80717]
[1746280479785,2.75005,1835.9,1835.8,3.718]
[1746280480593,2.75005,1835.9,1835.8,4.80717]
[1746280482696,3.61865,1835.9,1835.8,4.80717]
[1746280484294,2.75005,1835.9,1835.8,4.80717]
[1746280498908,1.6609,1835.9,1835.8,4.80717]
[1746280499216,2.75001,1835.9,1835.8,4.80717]
[1746280501515,1.6609,1835.9,1835.8,4.80717]
[1746280508623,2.75001,1835.9,1835.8,4.80717]
[1746280510625,2.75001,1835.9,1835.8,3.718]
[1746280510817,3.16742952,1835.9,1835.8,3.718]
[1746280511224,1.08917,1835.8,1835.7,7.22307233]
[1746280511424,8.03512248,1835.8,1835.7,7.22307233]
[1746280512122,8.03512248,1835.8,1835.7,10.94107233]
[1746280512425,8.03512248,1835.8,1835.7,12.03030233]
[1746280512923,16.34498821,1835.8,1835.5,9.1665663]
[1746280513124,1.08934,1835.5,1835.4,10.89199891]
[1746280513423,4.93479248,1835.5,1835.4,10.89199891]
[1746280513628,6.65129248,1835.5,1835.4,10.89199891]
[1746280515122,6.65129248,1835.5,1835.4,14.60999891]
[1746280516228,8.27099248,1835.5,1835.4,14.60999891]
[1746280516425,8.26935217,1835.5,1835.4,14.60999891]
[1746280517126,8.26935217,1835.5,1835.4,10.89199891]
[1746280517528,12.63686992,1835.5,1835.0,44.518]
[1746280517726,3.2078,1835.2,1835.0,44.518]
[1746280518025,4.45248,1835.1,1835.0,44.518]
[1746280519025,4.45248,1835.1,1835.0,3.718]
[1746280526136,8.85151573,1835.1,1835.0,3.718]
[1746280526332,14.26646428,1835.1,1835.0,3.718]
[1746280527333,1.08988,1834.6,1834.5,2.3937]
[1746280528140,1.08988,1834.6,1834.5,6.1117]
[1746280535135,1.08988,1834.6,1834.5,7.20164]
[1746280536645,1.08988,1834.6,1834.5,6.1117]
[1746280538642,1.08988,1834.6,1834.5,7.20164]
[1746280538843,1.08988,1834.6,1834.5,3.718]
[1746280539045,1.93308,1834.6,1834.5,3.718]
[1746280539437,1.08988,1834.6,1834.5,46.1278]
[1746280539636,1.08988,1834.6,1834.5,46.9667]
[1746280541345,1.08988,1834.6,1834.5,48.05664]
[1746280542546,1.08988,1834.6,1834.5,46.9667]
[1746280545948,1.08988,1834.6,1834.5,48.05664]
[1746280547143,1.08988,1834.6,1834.5,48.0566]
[1746280550354,1.08988,1834.6,1834.5,46.9667]
[1746280550755,2.73298,1834.6,1834.5,46.9667]
[1746280550955,3.14988121,1834.6,1834.5,46.1278]
[1746280551254,4.00588121,1834.6,1834.5,46.1278]
[1746280551449,4.00588121,1834.6,1834.5,47.21774]
[1746280551757,4.00588121,1834.6,1834.5,46.1278]
[1746280552248,3.58898,1834.6,1834.5,46.1278]
[1746280552453,4.00598641,1834.6,1834.5,46.1278]
[1746280552952,4.00598641,1834.6,1834.5,47.21774]
[1746280554154,4.00622911,1834.6,1834.5,47.21774]
[1746280557755,4.00676917,1834.6,1834.5,45.60794]
[1746280558055,4.00676917,1834.6,1834.5,44.518]
[1746280558958,4.00676917,1834.6,1834.5,3.718]
[1746280561257,4.00678064,1834.6,1834.5,3.718]
[1746280562854,4.00678064,1834.6,1834.5,4.80794]
[1746280564358,4.00671724,1834.6,1834.5,4.80794]
[1746280565561,1.50761724,1834.6,1834.5,4.80794]
[1746280565758,1.50761724,1834.6,1834.5,7.26944]
[1746280566161,1.50762703,1834.6,1834.5,7.26944]
[1746280569061,0.41774703,1834.6,1834.5,7.26944]
[1746280569765,0.41777656,1834.6,1834.5,7.26944]
[1746280570464,1.50765656,1834.6,1834.5,7.26944]
[1746280574069,0.41777656,1834.6,1834.5,7.26944]
[1746280574468,2.14017656,1834.6,1834.5,7.26944]
[1746280575170,2.14017681,1834.6,1834.5,7.26944]
[1746280575869,3.23005681,1834.6,1834.5,7.26944]
[1746280576971,3.23005297,1834.6,1834.5,7.26944]
[1746280578773,2.14019398,1834.6,1834.5,7.26944]
[1746280579069,3.23007398,1834.6,1834.5,7.26944]
[1746280580571,3.23003318,1834.6,1834.5,7.26944]
[1746280580773,2.14015318,1834.6,1834.5,7.26944]
[1746280582373,2.14013575,1834.6,1834.5,7.26944]
[1746280583071,3.23001575,1834.6,1834.5,7.26944]
[1746280583370,0.41773575,1834.6,1834.5,12.26944]
[1746280583578,3.6302068,1834.7,1834.6,1.08988]
[1746280583877,3.6302068,1834.7,1834.6,3.45558]
[1746280586478,4.8879,1834.8,1834.7,1.08982]
[1746280586669,5.30524215,1834.8,1834.7,3.48652]
[1746280587075,5.30524215,1834.8,1834.7,7.20452]
[1746280587778,5.30517943,1834.8,1834.7,7.20452]
[1746280588678,2.09737943,1834.8,1834.7,7.20452]
[1746280588880,1.6801,1834.8,1834.7,7.20452]
[1746280589980,1.6801,1834.8,1834.7,10.41232]
[1746280602893,1.6801,1834.8,1834.7,8.82822]
[1746280603092,1.6801,1834.8,1834.7,8.01562]
[1746280603093,2.5237,1834.8,1834.7,8.01562]
[1746280607198,2.5237,1834.8,1834.7,4.80782]
[1746280612302,3.61346,1834.8,1834.7,4.80782]
[1746280612493,2.5237,1834.8,1834.7,4.80782]
[1746280613191,2.94129251,1834.8,1834.7,4.80782]
[1746280615097,2.9413106,1834.8,1834.7,4.80782]
[1746280616801,2.94134458,1834.8,1834.7,4.80782]
[1746280620405,2.94137199,1834.8,1834.7,4.80782]
[1746280621808,2.94136706,1834.8,1834.7,45.60782]
[1746280625307,2.94132564,1834.8,1834.7,45.60782]
[1746280628808,2.94136032,1834.8,1834.7,45.60782]
[1746280629710,4.03112032,1834.8,1834.7,45.60782]
[1746280630613,4.03113248,1834.8,1834.7,45.60782]
[1746280631913,2.94137248,1834.8,1834.7,45.60782]
[1746280632413,2.94138994,1834.8,1834.7,45.60782]
[1746280633609,4.03114994,1834.8,1834.7,45.60782]
[1746280636010,3.61346,1834.8,1834.7,45.60782]
[1746280636208,4.03117624,1834.8,1834.7,45.60782]
[1746280637816,3.61346,1834.8,1834.7,45.60782]
[1746280638020,4.03118502,1834.8,1834.7,45.60782]
[1746280639613,3.61346,1834.8,1834.7,45.60782]
[1746280639818,4.03121061,1834.8,1834.7,45.60782]
[1746280640320,2.94145061,1834.8,1834.7,45.60782]
[1746280641318,2.9414933,1834.8,1834.7,45.60782]
[1746280641518,2.94149348,1834.8,1834.7,45.60782]
[1746280644622,4.03125348,1834.8,1834.7,45.60782]
[1746280645120,4.03131575,1834.8,1834.7,3.718]
[1746280645717,4.03131575,1834.8,1834.7,44.518]
[1746280645918,4.03131575,1834.8,1834.7,45.60782]
[1746280646921,4.03108337,1834.8,1834.7,45.60782]
[1746280647322,7.23888337,1834.8,1834.7,45.60782]
[1746280648021,4.03108337,1834.8,1834.7,45.60782]
[1746280648723,4.03097476,1834.8,1834.7,45.60782]
[1746280650517,4.03096129,1834.8,1834.7,45.60782]
[1746280654128,4.0309401,1834.8,1834.7,45.60782]
[1746280657730,4.03094202,1834.8,1834.7,45.60782]
[1746280659530,4.0309464,1834.8,1834.7,45.60782]
[1746280661336,4.03095506,1834.8,1834.7,45.60782]
[1746280663132,4.03095506,1834.8,1834.7,4.80782]
[1746280663636,4.03095506,1834.8,1834.7,3.718]
[1746280664933,4.03098646,1834.8,1834.7,3.718]
[1746280666435,4.03098646,1834.8,1834.7,4.80782]
[1746280670637,4.03106866,1834.8,1834.7,4.80782]
[1746280671736,4.03106866,1834.8,1834.7,3.718]
[1746280672237,4.0311645,1834.8,1834.7,3.718]
[1746280676144,4.0311645,1834.8,1834.5,7.2696018]
[1746280676145,1.08988,1834.6,1834.5,10.9876018]
[1746280676439,1.5075845,1834.6,1834.5,10.9876018]
[1746280676640,1.5075845,1834.6,1834.5,3.718]
[1746280676841,4.7383845,1834.6,1834.5,3.718]
[1746280677637,4.73804477,1834.6,1834.5,3.718]
[1746280684755,3.12064477,1834.6,1834.5,4.80794]
[1746280684948,3.12064477,1834.6,1834.5,7.31304]
[1746280687859,2.70328,1834.6,1834.5,7.31304]
[1746280688057,3.12054055,1834.6,1834.5,7.31304]
[1746280688760,3.12054055,1834.6,1834.5,6.2231]
[1746280689453,3.12054055,1834.6,1834.5,3.718]
[1746280689758,3.93114055,1834.6,1834.5,3.718]
[1746280691763,3.93120043,1834.6,1834.5,3.718]
[1746280692764,7.13900043,1834.6,1834.5,3.718]
[1746280693563,7.13901719,1834.6,1834.5,3.718]
[1746280699060,7.13909132,1834.6,1834.5,3.718]
[1746280700767,7.13921981,1834.6,1834.5,3.718]
[1746280702569,7.13912288,1834.6,1834.5,3.718]
[1746280703273,1.09012,1834.2,1834.1,43.47125]
[1746280703569,1.50756288,1834.2,1834.1,43.47125]
[1746280704275,3.23606288,1834.2,1834.1,43.47125]
[1746280704472,3.23591022,1834.2,1834.1,43.47125]
[1746280705272,2.81862,1834.2,1834.1,43.47125]
[1746280705976,2.81862,1834.2,1834.1,42.3811]
[1746280706281,3.23585743,1834.2,1834.1,42.3811]
[1746280706574,1.0901,1834.3,1834.2,1.0901]
[1746280706763,1.50726291,1834.3,1834.2,3.6724]
[1746280707075,1.0901,1834.3,1834.2,3.6724]
[1746280707275,1.0901,1834.3,1834.2,7.3904]
[1746280710774,1.08999,1834.5,1834.4,1.09]
[1746280710974,1.50709721,1834.5,1834.4,1.09]
[1746280711176,1.50709721,1834.5,1834.4,7.2458]
[1746280713573,5.48891573,1834.7,1834.6,1.08988]
[1746280713775,1.50695161,1834.7,1834.6,1.08988]
[1746280713973,1.08988,1834.7,1834.6,1.08988]
[1746280714177,1.08988,1834.7,1834.6,45.17168]
[1746280717680,4.73266722,1834.8,1834.7,1.08982]
[1746280717881,5.1495067,1834.8,1834.7,2.77202]
[1746280718173,6.8637067,1834.8,1834.7,6.49002]
[1746280718368,3.22083948,1834.8,1834.7,6.49002]
[1746280718978,3.22081059,1834.8,1834.7,6.49002]
[1746280720683,3.22070974,1834.8,1834.7,6.49002]
[1746280721380,3.22070974,1834.8,1834.7,5.4002]
[1746280721878,3.22070974,1834.8,1834.7,3.718]
[1746280723389,6.42850974,1834.8,1834.7,3.718]
[1746280724280,6.42844883,1834.8,1834.7,3.718]
[1746280725281,7.27924883,1834.8,1834.7,3.718]
[1746280726183,7.27925241,1834.8,1834.7,3.718]
[1746280726583,4.07145241,1834.8,1834.7,3.718]